fUST/lending_fUST_20250730
["ID","MTS","AMOUNT","RATE_DAILY","PERIOD"]
[376011943,1753821046893,-1236.87,0.00020111,2]
[376011944,1753821046902,-460.0,0.00020111,2]
[376011947,1753821046912,-460.0,0.00020112,2]
[376011965,1753821047074,-460.0,0.00020112,2]
[376011967,1753821047086,-752.43,0.00020112,2]
[376011969,1753821047096,-1480.16,0.00020112,2]
[376011972,1753821047107,-501.44,0.00020112,2]
[376011974,1753821047117,-460.0,0.00020112,2]
[376011976,1753821047126,-516.27,0.00020112,2]
[376011978,1753821047136,-824.51,0.00020112,2]
[376011980,1753821047148,-460.0,0.00020112,2]
[376011982,1753821047158,-460.0,0.00020112,2]
[376011984,1753821047168,-460.0,0.00020112,2]
[376011986,1753821047177,-151.0,0.00020112,2]
[376011988,1753821047186,-256.95,0.00020112,2]
[376011990,1753821047196,-479.29,0.00020112,2]
[376011992,1753821047205,-631.61,0.00020112,2]
[376011993,1753821047215,-570.57,0.00020113,2]
[376011996,1753821047224,-544.87,0.00020113,2]
[376011998,1753821047234,-621.99,0.00020113,2]
[376012000,1753821047243,-460.0,0.00020113,2]
[376012001,1753821047253,-192.65558894,0.00020113,2]
[376012004,1753821047263,-513.6095809,0.00020113,2]
[376012006,1753821047273,-151.0,0.00020113,2]
[376012008,1753821047282,-162.20469,0.00020113,2]
[376012010,1753821047291,-590.02,0.00020113,2]
[376012012,1753821047301,-512.29,0.00020113,2]
[376012013,1753821047310,-460.0,0.00020113,2]
[376012016,1753821047319,-460.0,0.00020113,2]
[376012018,1753821047330,-156.562347,0.00020113,2]
[376012020,1753821047343,-156.562347,0.00020113,2]
[376012022,1753821047353,-460.0,0.00020113,2]
[376012024,1753821047363,-460.0,0.00020113,2]
[376012026,1753821047372,-460.0,0.00020113,2]
[376012028,1753821047382,-751.55,0.00020113,2]
[376012029,1753821047391,-701.4,0.00020113,2]
[376012031,1753821047401,-325.35,0.00020113,2]
[376012033,1753821047413,-460.0,0.00020113,2]
[376012036,1753821047422,-460.0,0.00020113,2]
[376012038,1753821047432,-460.0,0.00020113,2]
[376012040,1753821047441,-151.0,0.00020114,2]
[376012042,1753821047451,-460.0,0.00020114,2]
[376012044,1753821047461,-1236.89,0.00020114,2]
[376012046,1753821047471,-151.0,0.00020114,2]
[376012048,1753821047480,-460.0,0.00020114,2]
[376012050,1753821047490,-151.0,0.00020115,2]
[376012051,1753821047500,-151.0,0.00020115,2]
[376012054,1753821047510,-151.0,0.00020115,2]
[376012055,1753821047522,-151.0,0.00020115,2]
[376012057,1753821047532,-151.0,0.00020115,2]
[376012059,1753821047541,-460.0,0.00020115,2]
[376012061,1753821047550,-151.0,0.00020115,2]
[376012063,1753821047560,-151.0,0.00020115,2]
[376012066,1753821047571,-7427.98,0.00020115,2]
[376012068,1753821047583,-1235.85,0.00020115,2]
[376012070,1753821047595,-1489.44,0.00020115,2]
[376012072,1753821047604,-273.467377,0.00020115,2]
[376012074,1753821047614,-273.467377,0.00020115,2]
[376012076,1753821047623,-1379.4,0.00020115,2]
[376012077,1753821047632,-1843.8,0.00020115,2]
[376012080,1753821047642,-376.343667,0.00020115,2]
[376012082,1753821047652,-376.343667,0.00020115,2]
[376012084,1753821047661,-460.0,0.00020115,2]
[376012086,1753821047672,-1203.52,0.00020115,2]
[376012088,1753821047682,-644.12,0.00020115,2]
[376012090,1753821047692,-151.0,0.00020116,2]
[376012092,1753821047701,-151.0,0.00020116,2]
[376012094,1753821047710,-1948.26,0.00020116,2]
[376012096,1753821047721,-460.0,0.00020116,2]
[376012098,1753821047732,-1730.35,0.00020116,2]
[376012100,1753821047742,-1528.76,0.00020116,2]
[376012102,1753821047752,-1000.0,0.00020117,2]
[376012104,1753821047762,-151.0,0.00020118,2]
[376012106,1753821047772,-156.562347,0.00020118,2]
[376012108,1753821047781,-156.562345,0.00020118,2]
[376012110,1753821047791,-3242.84840215,0.00020119,2]
[376012112,1753821047800,-838.0,0.00020119,2]
[376012114,1753821047811,-376.343667,0.00020119,2]
[376012116,1753821047821,-376.343667,0.00020119,2]
[376012118,1753821047830,-282.56478394,0.00020119,2]
[376012120,1753821047839,-168.0,0.00020125,2]
[376012122,1753821047849,-150.0,0.00020144,2]
[376012124,1753821047858,-150.0,0.00020144,2]
[376012127,1753821047868,-150.0,0.00020144,2]
[376012129,1753821047877,-800.0,0.00020151,2]
[376012131,1753821047887,-913.19332865,0.00020168,2]
[376012132,1753821047896,-500.0,0.00020173,2]
[376012134,1753821047906,-1200.0,0.00020174,2]
[376012137,1753821047916,-366.240287,0.00020187,2]
[376012138,1753821047925,-151.0,0.000202,4]
[376012141,1753821047935,-870.96771288,0.0002021,2]
[376012143,1753821047944,-1862.6,0.00020251,3]
[376012145,1753821047954,-168.0,0.00020277,2]
[376012146,1753821047963,-168.0,0.00020287,2]
[376012148,1753821047973,-168.0,0.00020291,2]
[376012150,1753821047982,-168.0,0.00020297,2]
[376012152,1753821047992,-870.96771288,0.00020314,3]
[376012154,1753821048002,-460.0,0.00020384,2]
[376012156,1753821048012,-460.0,0.00020384,2]
[376012159,1753821048022,-1512.86,0.00020384,2]
[376012161,1753821048032,-2645.75,0.00020385,2]
[376012162,1753821048041,-460.0,0.00020385,2]
[376012164,1753821048050,-2033.14,0.00020385,2]
[376012166,1753821048059,-1236.87,0.00020385,2]
[376012168,1753821048069,-460.0,0.00020385,2]
[376012170,1753821048079,-208.310912,0.00020386,2]
[376012172,1753821048088,-460.0,0.00020386,2]
[376012174,1753821048098,-151.0,0.00020386,2]
[376012177,1753821048108,-460.0,0.00020386,2]
[376012178,1753821048118,-752.43,0.00020386,2]
[376012181,1753821048128,-1480.16,0.00020386,2]
[376012183,1753821048137,-501.44,0.00020386,2]
[376012185,1753821048147,-460.0,0.00020386,2]
[376012186,1753821048156,-516.27,0.00020386,2]
[376012188,1753821048165,-824.51,0.00020386,2]
[376012190,1753821048175,-460.0,0.00020386,2]
[376012192,1753821048185,-460.0,0.00020386,2]
[376012194,1753821048195,-460.0,0.00020386,2]
[376012197,1753821048204,-479.29,0.00020386,2]
[376012199,1753821048214,-631.61,0.00020386,2]
[376012201,1753821048223,-570.57,0.00020387,2]
[376012203,1753821048232,-544.87,0.00020387,2]
[376012205,1753821048242,-621.99,0.00020387,2]
[376012207,1753821048251,-460.0,0.00020387,2]
[376012209,1753821048260,-590.02,0.00020387,2]
[376012211,1753821048269,-512.29,0.00020387,2]
[376012212,1753821048280,-460.0,0.00020387,2]
[376012215,1753821048289,-460.0,0.00020387,2]
[376012216,1753821048299,-460.0,0.00020387,2]
[376012219,1753821048309,-460.0,0.00020387,2]
[376012221,1753821048319,-460.0,0.00020387,2]
[376012223,1753821048333,-751.55,0.00020387,2]
[376012225,1753821048346,-701.4,0.00020387,2]
[376012227,1753821048356,-376.343667,0.00020387,2]
[376012229,1753821048365,-376.343667,0.00020387,2]
[376012231,1753821048376,-460.0,0.00020387,2]
[376012233,1753821048385,-460.0,0.00020387,2]
[376012235,1753821048394,-200.0,0.00020388,2]
[376012237,1753821048405,-460.0,0.00020388,2]
[376012238,1753821048414,-1236.89,0.00020388,2]
[376012240,1753821048423,-151.0,0.00020388,2]
[376012243,1753821048433,-579.34,0.00020388,2]
[376012245,1753821048442,-180.60131649,0.00020389,2]
[376012247,1753821048452,-151.0,0.00020389,2]
[376012249,1753821048462,-151.0,0.00020389,2]
[376012251,1753821048471,-151.0,0.00020389,2]
[376012253,1753821048481,-151.0,0.00020389,2]
[376012254,1753821048490,-460.0,0.00020389,2]
[376012257,1753821048499,-151.0,0.00020389,2]
[376012259,1753821048509,-7427.98,0.00020389,2]
[376012261,1753821048518,-1235.85,0.00020389,2]
[376012263,1753821048530,-1489.44,0.00020389,2]
[376012264,1753821048540,-273.467377,0.00020389,2]
[376012266,1753821048550,-273.467377,0.00020389,2]
[376012268,1753821048559,-1379.4,0.00020389,2]
[376012271,1753821048569,-1843.8,0.00020389,2]
[376012273,1753821048579,-460.0,0.00020389,2]
[376012275,1753821048588,-1203.52,0.00020389,2]
[376012277,1753821048597,-644.12,0.00020389,2]
[376012279,1753821048607,-151.0,0.0002039,2]
[376012281,1753821048616,-1948.26,0.0002039,2]
[376012283,1753821048626,-460.0,0.0002039,2]
[376012285,1753821048635,-1730.35,0.0002039,2]
[376012286,1753821048645,-1528.76,0.0002039,2]
[376012289,1753821048655,-838.0,0.00020393,2]
[376012291,1753821048664,-870.96771288,0.00020417,3]
[376012293,1753821048673,-460.5085953,0.0002042,3]
[376012294,1753821048682,-160.0,0.0002042,3]
[376012297,1753821048692,-12637.12721421,0.0002042,3]
[376012299,1753821048702,-214.91980558,0.0002042,3]
[376012301,1753821048713,-168.0,0.00020453,2]
[376012303,1753821048724,-5000.0,0.00020471,2]
[376012305,1753821048739,-1862.6,0.00020497,3]
[376012307,1753821048748,-151.0,0.000205,2]
[376012309,1753821048758,-151.0,0.000205,2]
[376012311,1753821048767,-151.0,0.000205,2]
[376012313,1753821048780,-151.0,0.000205,3]
[376012315,1753821048790,-3586.0,0.00020509,2]
[376012317,1753821048800,-870.96771288,0.00020521,3]
[376012319,1753821048809,-151.0,0.00020543,2]
[376012321,1753821048819,-500.0,0.00020562,2]
[376012323,1753821048829,-204.56815493,0.00020562,2]
[376012325,1753821048839,-248.831963,0.00020566,2]
[376012327,1753821048849,-1434.05,0.000206,2]
[376012329,1753821048858,-578.1881624,0.00020601,2]
[376012332,1753821048871,-870.96771288,0.00020624,3]
[376012334,1753821048881,-260.0,0.00020627,2]
[376012335,1753821048890,-460.0,0.00020658,2]
[376012337,1753821048900,-460.0,0.00020658,2]
[376012339,1753821048910,-1512.86,0.00020658,2]
[376012342,1753821048920,-2645.75,0.00020659,2]
[376012344,1753821048930,-460.0,0.00020659,2]
[376012346,1753821048939,-2033.14,0.00020659,2]
[376012348,1753821048950,-1236.87,0.00020659,2]
[376012350,1753821048959,-460.0,0.00020659,2]
[376012352,1753821048970,-427.47469727,0.0002066,2]
[376012354,1753821048980,-460.0,0.0002066,2]
[376012356,1753821048990,-752.43,0.0002066,2]
[376012358,1753821049000,-1480.16,0.0002066,2]
[376012360,1753821049010,-273.467377,0.0002066,2]
[376012362,1753821049020,-273.467377,0.0002066,2]
[376012364,1753821049036,-501.44,0.0002066,2]
[376012366,1753821049049,-460.0,0.0002066,2]
[376012368,1753821049059,-516.27,0.0002066,2]
[376012370,1753821049069,-824.51,0.0002066,2]
[376012372,1753821049079,-376.343667,0.0002066,2]
[376012374,1753821049090,-376.343667,0.0002066,2]
[376012376,1753821049100,-460.0,0.0002066,2]
[376012378,1753821049110,-460.0,0.0002066,2]
[376012380,1753821049120,-460.0,0.0002066,2]
[376012383,1753821049131,-479.29,0.0002066,2]
[376012385,1753821049141,-631.61,0.0002066,2]
[376012387,1753821049153,-151.0,0.00020661,2]
[376012389,1753821049163,-151.0,0.00020661,2]
[376012391,1753821049173,-570.57,0.00020661,2]
[376012393,1753821049182,-544.87,0.00020661,2]
[376012395,1753821049192,-151.0,0.00020661,2]
[376012397,1753821049201,-621.99,0.00020661,2]
[376012399,1753821049211,-460.0,0.00020661,2]
[376012401,1753821049220,-590.02,0.00020661,2]
[376012403,1753821049231,-512.29,0.00020661,2]
[376012405,1753821049241,-460.0,0.00020661,2]
[376012407,1753821049250,-460.0,0.00020661,2]
[376012409,1753821049260,-460.0,0.00020661,2]
[376012411,1753821049271,-460.0,0.00020661,2]
[376012413,1753821049283,-751.55,0.00020661,2]
[376012415,1753821049292,-701.4,0.00020661,2]
[376012417,1753821049302,-460.0,0.00020661,2]
[376012419,1753821049311,-460.0,0.00020661,2]
[376012421,1753821049323,-151.0,0.00020662,2]
[376012424,1753821049334,-151.0,0.00020662,2]
[376012426,1753821049346,-460.0,0.00020662,2]
[376012428,1753821049356,-1236.89,0.00020662,2]
[376012430,1753821049366,-460.0,0.00020663,2]
[376012432,1753821049377,-7427.98,0.00020663,2]
[376012434,1753821049387,-1235.85,0.00020663,2]
[376012436,1753821049397,-1489.44,0.00020663,2]
[376012438,1753821049406,-1379.4,0.00020663,2]
[376012439,1753821049416,-1843.8,0.00020663,2]
[376012442,1753821049426,-460.0,0.00020663,2]
[376012444,1753821049435,-1203.52,0.00020663,2]
[376012446,1753821049445,-644.12,0.00020663,2]
[376012448,1753821049454,-1948.26,0.00020664,2]
[376012450,1753821049463,-460.0,0.00020664,2]
[376012452,1753821049472,-1730.35,0.00020664,2]
[376012453,1753821049482,-1528.76,0.00020664,2]
[376012456,1753821049492,-1417.02870883,0.00020665,2]
[376012458,1753821049501,-151.0,0.00020666,2]
[376012460,1753821049511,-151.0,0.00020666,2]
[376012462,1753821049521,-151.0,0.00020666,2]
[376012464,1753821049534,-838.0,0.00020667,2]
[376012466,1753821049543,-151.0,0.000207,4]
[376012468,1753821049552,-500.0,0.00020721,2]
[376012470,1753821049562,-248.831963,0.00020721,3]
[376012472,1753821049572,-420.0,0.00020724,2]
[376012474,1753821049581,-870.96771288,0.00020728,3]
[376012476,1753821049591,-500.0,0.00020734,2]
[376012478,1753821049600,-500.0,0.00020734,2]
[376012480,1753821049610,-271.221553,0.00020741,2]
[376012482,1753821049619,-172.040844,0.00020741,2]
[376012484,1753821049629,-273.467377,0.00020741,2]
[376012486,1753821049639,-273.467377,0.00020741,2]
[376012488,1753821049649,-376.343667,0.00020741,2]
[376012490,1753821049658,-376.343667,0.00020741,2]
[376012492,1753821049668,-30000.0,0.00020741,2]
[376012494,1753821049678,-1862.6,0.00020744,4]
[376012496,1753821049687,-500.0,0.00020753,2]
[376012498,1753821049697,-384.59646176,0.00020753,2]
[376012500,1753821049706,-500.0,0.00020753,2]
[376012502,1753821049715,-404.0,0.0002076,2]
[376012504,1753821049725,-8194.8340397,0.00020782,2]
[376012506,1753821049735,-337.86832586,0.00020802,2]
[376012508,1753821049745,-870.96771288,0.00020831,4]
[376012510,1753821049754,-500.9491733,0.00020879,2]
[376012512,1753821049764,-500.0,0.00020879,2]
[376012514,1753821049773,-3586.0,0.00020914,2]
[376012516,1753821049784,-402.1673859,0.00020932,2]
[376012518,1753821049794,-460.0,0.00020932,2]
[376012520,1753821049803,-1512.86,0.00020932,2]
[376012523,1753821049813,-2645.75,0.00020933,2]
[376012525,1753821049822,-460.0,0.00020933,2]
[376012527,1753821049832,-2033.14,0.00020933,2]
[376012529,1753821049841,-1236.87,0.00020933,2]
[376012544,1753821049976,-460.0,0.00020933,2]
[376012546,1753821049986,-500.0,0.00020933,2]
[376012548,1753821049996,-500.0,0.00020933,2]
[376012550,1753821050006,-500.0,0.00020933,2]
[376012552,1753821050015,-557.35520227,0.00020933,2]
[376012554,1753821050026,-500.0,0.00020933,2]
[376012556,1753821050035,-500.0,0.00020933,2]
[376012558,1753821050045,-500.0,0.00020933,2]
[376012560,1753821050054,-500.0,0.00020933,2]
[376012562,1753821050064,-500.0,0.00020933,2]
[376012565,1753821050074,-500.0,0.00020933,2]
[376012567,1753821050084,-500.0,0.00020933,2]
[376012569,1753821050093,-500.0,0.00020933,2]
[376012571,1753821050103,-460.0,0.00020934,2]
[376012573,1753821050112,-752.43,0.00020934,2]
[376012575,1753821050122,-1480.16,0.00020934,2]
[376012577,1753821050131,-501.44,0.00020934,2]
[376012579,1753821050140,-460.0,0.00020934,2]
[376012581,1753821050150,-406.82299658,0.00020934,2]
[376012593,1753821050252,-109.44700342,0.00020934,2]
[376012595,1753821050262,-824.51,0.00020934,2]
[376012597,1753821050271,-608.71,0.00020934,2]
[376012599,1753821050282,-460.0,0.00020934,2]
[376012601,1753821050292,-460.0,0.00020934,2]
[376012603,1753821050301,-479.29,0.00020934,2]
[376012605,1753821050311,-870.96771288,0.00020934,4]
[376012607,1753821050320,-570.57,0.00020935,2]
[376012608,1753821050330,-544.87,0.00020935,2]
[376012611,1753821050343,-621.99,0.00020935,2]
[376012612,1753821050352,-460.0,0.00020935,2]
[376012614,1753821050361,-590.02,0.00020935,2]
[376012617,1753821050373,-512.29,0.00020935,2]
[376012618,1753821050383,-460.0,0.00020935,2]
[376012620,1753821050392,-460.0,0.00020935,2]
[376012622,1753821050402,-460.0,0.00020935,2]
[376012625,1753821050417,-322.77197318,0.00020935,2]
[376012627,1753821050431,-751.55,0.00020935,2]
[376012629,1753821050441,-701.4,0.00020935,2]
[376012631,1753821050450,-460.0,0.00020935,2]
[376012632,1753821050462,-460.0,0.00020935,2]
[376012634,1753821050481,-460.0,0.00020936,2]
[376012636,1753821050491,-1236.89,0.00020936,2]
[376012637,1753821050502,-460.0,0.00020937,2]
[376012638,1753821050511,-7427.98,0.00020937,2]
[376012639,1753821050521,-1235.85,0.00020937,2]
[376012640,1753821050532,-1489.44,0.00020937,2]
[376012641,1753821050541,-1379.4,0.00020937,2]
[376012642,1753821050550,-1843.8,0.00020937,2]
[376012643,1753821050560,-460.0,0.00020937,2]
[376012644,1753821050569,-1203.52,0.00020937,2]
[376012645,1753821050579,-644.12,0.00020937,2]
[376012646,1753821050589,-542.62587912,0.00020938,2]
[376012647,1753821050598,-500.0,0.00020938,2]
[376012648,1753821050608,-185.05189559,0.00020938,2]
[376012650,1753821050618,-1948.26,0.00020938,2]
[376012652,1753821050628,-460.0,0.00020938,2]
[376012654,1753821050638,-1730.35,0.00020938,2]
[376012656,1753821050648,-273.467377,0.00020938,2]
[376012658,1753821050658,-273.467385,0.00020938,2]
[376012660,1753821050670,-376.343667,0.00020938,2]
[376012662,1753821050680,-376.343667,0.00020938,2]
[376012664,1753821050690,-1528.76,0.00020938,2]
[376012666,1753821050700,-838.0,0.00020941,2]
[376012668,1753821050709,-1862.6,0.0002099,4]
[376012670,1753821050718,-200.0,0.00020991,15]
[376012672,1753821050727,-200.0,0.00020991,15]
[376012674,1753821050737,-200.0,0.00020991,15]
[376012676,1753821050747,-200.0,0.00020991,15]
[376012678,1753821050756,-320.0,0.00020991,15]
[376012680,1753821050766,-150.0,0.00021,2]
[376012682,1753821050775,-3000.0,0.00021,2]
[376012684,1753821050784,-151.0,0.00021,4]
[376012686,1753821050794,-3000.0,0.0002101,2]
[376012688,1753821050803,-3000.0,0.0002102,2]
[376012690,1753821050813,-3000.0,0.0002103,2]
[376012692,1753821050824,-870.96771288,0.00021038,4]
[376012694,1753821050833,-3000.0,0.0002104,2]
[376012696,1753821050842,-3000.0,0.0002105,2]
[376012698,1753821050852,-404.0,0.00021058,2]
[376012700,1753821050861,-3000.0,0.0002106,2]
[376012702,1753821050871,-3000.0,0.0002107,2]
[376012704,1753821050880,-3000.0,0.0002108,2]
[376012706,1753821050890,-3000.0,0.0002109,2]
[376012708,1753821050899,-3000.0,0.000211,2]
[376012710,1753821050909,-151.0,0.000211,3]
[376012712,1753821050918,-248.831963,0.00021101,3]
[376012714,1753821050928,-1000.0,0.00021109,2]
[376012716,1753821050937,-3000.0,0.0002111,2]
[376012718,1753821050947,-3000.0,0.0002112,2]
[376012720,1753821050956,-3000.0,0.0002113,2]
[376012722,1753821050967,-3000.0,0.0002114,2]
[376012724,1753821050977,-870.96771288,0.00021141,4]
[376012726,1753821050987,-3000.0,0.0002115,2]
[376012728,1753821050996,-3000.0,0.0002116,2]
[376012730,1753821051005,-3000.0,0.0002117,2]
[376012732,1753821051016,-376.343667,0.0002117,2]
[376012734,1753821051026,-376.34367,0.0002117,2]
[376012736,1753821051035,-360.0,0.00021175,2]
[376012738,1753821051045,-3000.0,0.0002118,2]
[376012740,1753821051055,-3000.0,0.0002119,2]
[376012742,1753821051064,-3000.0,0.000212,2]
[376012743,1753821051073,-151.0,0.000212,4]
[376012745,1753821051083,-460.0,0.00021206,2]
[376012747,1753821051092,-1512.86,0.00021206,2]
[376012749,1753821051102,-2645.75,0.00021207,2]
[376012751,1753821051112,-460.0,0.00021207,2]
[376012753,1753821051123,-2033.14,0.00021207,2]
[376012755,1753821051132,-1236.87,0.00021207,2]
[376012757,1753821051142,-460.0,0.00021207,2]
[376012759,1753821051151,-460.0,0.00021208,2]
[376012761,1753821051161,-752.43,0.00021208,2]
[376012763,1753821051170,-1480.16,0.00021208,2]
[376012765,1753821051180,-501.44,0.00021208,2]
[376012767,1753821051189,-460.0,0.00021208,2]
[376012769,1753821051199,-516.27,0.00021208,2]
[376012771,1753821051209,-824.51,0.00021208,2]
[376012773,1753821051218,-43.04843923,0.00021208,2]
[376013427,1753821057809,-460.0,0.00018743,2]
[376013429,1753821057819,-460.0,0.00018745,2]
[376013431,1753821057829,-240.68361707,0.00018917,2]
[376013433,1753821057838,-460.0,0.00019015,2]
[376013435,1753821057849,-460.0,0.00019019,2]
[376013437,1753821057859,-151.263225,0.0001929,2]
[376013439,1753821057868,-151.0,0.00019297,2]
[376013441,1753821057877,-631.61,0.00020934,2]
[376013443,1753821057887,-416.95156077,0.00021208,2]
[376013445,1753821057897,-460.0,0.00021208,2]
[376013447,1753821057907,-479.29,0.00021208,2]
[376013449,1753821057917,-631.61,0.00021208,2]
[376013451,1753821057926,-570.57,0.00021209,2]
[376013453,1753821057936,-544.87,0.00021209,2]
[376013455,1753821057945,-621.99,0.00021209,2]
[376013457,1753821057955,-460.0,0.00021209,2]
[376013459,1753821057964,-590.02,0.00021209,2]
[376013462,1753821057974,-512.29,0.00021209,2]
[376013463,1753821057983,-460.0,0.00021209,2]
[376013465,1753821057993,-460.0,0.00021209,2]
[376013467,1753821058003,-460.0,0.00021209,2]
[376013470,1753821058013,-751.55,0.00021209,2]
[376013472,1753821058022,-701.4,0.00021209,2]
[376013474,1753821058032,-460.0,0.00021209,2]
[376013476,1753821058041,-460.0,0.00021209,2]
[376013478,1753821058051,-3000.0,0.0002121,2]
[376013480,1753821058060,-460.0,0.0002121,2]
[376013482,1753821058069,-1236.89,0.0002121,2]
[376013484,1753821058079,-460.0,0.00021211,2]
[376013486,1753821058089,-7427.98,0.00021211,2]
[376013488,1753821058099,-1235.85,0.00021211,2]
[376013490,1753821058108,-1489.44,0.00021211,2]
[376013492,1753821058118,-1379.4,0.00021211,2]
[376013494,1753821058129,-1843.8,0.00021211,2]
[376013496,1753821058139,-460.0,0.00021211,2]
[376013498,1753821058148,-1203.52,0.00021211,2]
[376013500,1753821058158,-644.12,0.00021211,2]
[376013502,1753821058167,-1948.26,0.00021212,2]
[376013504,1753821058176,-460.0,0.00021212,2]
[376013506,1753821058186,-1730.35,0.00021212,2]
[376013508,1753821058197,-1528.76,0.00021212,2]
[376013510,1753821058207,-838.0,0.00021215,2]
[376013512,1753821058216,-3000.0,0.0002122,2]
[376013514,1753821058226,-3000.0,0.0002123,2]
[376013516,1753821058236,-1862.6,0.00021237,4]
[376013518,1753821058245,-3067.179451,0.0002124,2]
[376013520,1753821058255,-870.96771288,0.00021245,4]
[376013522,1753821058265,-248.831963,0.00021245,4]
[376013524,1753821058275,-253.89962719,0.0002126,2]
[376013526,1753821058288,-154.02721671,0.0002126,2]
[376013528,1753821058298,-1200.0,0.0002127,2]
[376013530,1753821058307,-2200.0,0.00021278,2]
[376013532,1753821058317,-500.0,0.00021278,2]
[376013534,1753821058327,-550.86559429,0.00021282,2]
[376013536,1753821058339,-500.0,0.00021282,2]
[376013538,1753821058349,-500.0,0.00021301,2]
[376013540,1753821058358,-573.13732482,0.00021301,2]
[376013542,1753821058368,-253.89962719,0.00021342,2]
[376013544,1753821058378,-870.96771288,0.00021348,5]
[376013546,1753821058387,-643.0,0.000214,2]
[376013548,1753821058397,-248.831963,0.00021406,2]
[376013550,1753821058408,-870.96771288,0.00021452,5]
[376013552,1753821058419,-253.89962719,0.00021452,2]
[376013554,1753821058429,-154.02721671,0.00021479,2]
[376013556,1753821058439,-248.831963,0.0002148,3]
[376013558,1753821058448,-460.0,0.0002148,2]
[376013560,1753821058458,-1512.86,0.0002148,2]
[376013562,1753821058467,-2645.75,0.00021481,2]
[376013564,1753821058477,-460.0,0.00021481,2]
[376013566,1753821058486,-2033.14,0.00021481,2]
[376013568,1753821058495,-1236.87,0.00021481,2]
[376013570,1753821058505,-460.0,0.00021481,2]
[376013572,1753821058515,-500.0,0.00021481,2]
[376013574,1753821058524,-500.0,0.00021481,2]
[376013576,1753821058537,-1000.0,0.00021481,2]
[376013578,1753821058546,-500.0,0.00021481,2]
[376013580,1753821058556,-500.0,0.00021481,2]
[376013582,1753821058565,-500.0,0.00021481,2]
[376013584,1753821058574,-436.98767834,0.00021481,2]
[376013586,1753821058583,-500.0,0.00021481,2]
[376013588,1753821058592,-500.0,0.00021481,2]
[376013590,1753821058602,-577.89883899,0.00021481,2]
[376013592,1753821058611,-500.0,0.00021481,2]
[376013594,1753821058620,-460.0,0.00021482,2]
[376013596,1753821058630,-752.43,0.00021482,2]
[376013598,1753821058640,-1480.16,0.00021482,2]
[376013600,1753821058649,-501.44,0.00021482,2]
[376013602,1753821058658,-580.09,0.00021482,2]
[376013604,1753821058668,-516.27,0.00021482,2]
[376013606,1753821058678,-824.51,0.00021482,2]
[376013608,1753821058687,-460.0,0.00021482,2]
[376013610,1753821058697,-460.0,0.00021482,2]
[376013612,1753821058707,-479.29,0.00021482,2]
[376013614,1753821058716,-631.61,0.00021482,2]
[376013617,1753821058726,-570.57,0.00021483,2]
[376013619,1753821058736,-544.87,0.00021483,2]
[376013621,1753821058745,-621.99,0.00021483,2]
[376013623,1753821058755,-460.0,0.00021483,2]
[376013624,1753821058764,-590.02,0.00021483,2]
[376013625,1753821058774,-512.29,0.00021483,2]